lending/lending_fUSD_20260317
["ID","MTS","AMOUNT","RATE_DAILY","PERIOD"]
[408488790,1773745832352,-151.0,0.00013782,2]
[408488791,1773745832362,-500.0,0.00013782,2]
[408488792,1773745832372,-42.11177873,0.00013782,2]
[408488793,1773745834687,10000.0,0.00032877,120]
[408488798,1773745837342,-500.0,0.00013724,2]
[408488799,1773745837352,-167.24641681,0.00013782,2]
[408488800,1773745837361,-490.35619265,0.00013782,2]
[408488801,1773745837371,-155.0,0.00013789,2]
[408488802,1773745837380,-500.0,0.0001379,2]
[408488803,1773745837391,-287.88936008,0.0001379,2]
[408488804,1773745837400,-935.15476214,0.0001379,2]
[408488805,1773745837409,-935.15476214,0.0001379,2]
[408488806,1773745837418,-935.15476214,0.0001379,2]
[408488807,1773745837427,-935.15476214,0.0001379,2]
[408488808,1773745837436,-935.15476214,0.0001379,2]
[408488809,1773745837446,-935.15476214,0.0001379,2]
[408488810,1773745837456,-935.15476214,0.0001379,2]
[408488811,1773745837465,-935.15476214,0.0001379,2]
[408488812,1773745837474,-935.15476214,0.0001379,2]
[408488813,1773745837483,-935.15476214,0.0001379,2]
[408488814,1773745837492,-935.15476214,0.0001379,2]
[408488815,1773745837502,-935.15476214,0.0001379,2]
[408488816,1773745837513,-935.15476214,0.0001379,2]
[408488817,1773745837522,-935.15476214,0.0001379,2]
[408488818,1773745837531,-935.15476214,0.0001379,2]
[408488819,1773745837540,-935.15476214,0.0001379,2]
[408488820,1773745837550,-935.15476214,0.0001379,2]
[408488821,1773745837559,-935.15476214,0.0001379,2]
[408488822,1773745837568,-935.15476214,0.0001379,2]
[408488823,1773745837578,-935.15476214,0.0001379,2]
[408488824,1773745837588,-935.15476214,0.0001379,2]
[408488825,1773745837597,-935.15476214,0.0001379,2]
[408488826,1773745837606,-935.15476214,0.0001379,2]
[408488827,1773745837616,-935.15476214,0.0001379,2]
[408488828,1773745837625,-935.15476214,0.0001379,2]
[408488829,1773745837634,-935.15476214,0.0001379,2]
[408488830,1773745837644,-935.15476214,0.0001379,2]
[408488831,1773745837653,-935.15476214,0.0001379,2]
[408488832,1773745837662,-935.15476214,0.0001379,2]
[408488834,1773745837672,-935.15476214,0.0001379,2]
[408488836,1773745837681,-935.15476214,0.0001379,2]
[408488838,1773745837691,-935.15476214,0.0001379,2]
[408488840,1773745837700,-935.15476214,0.0001379,2]
[408488842,1773745837710,-538.97614261,0.0001379,2]
[408488845,1773745837729,-396.17861953,0.0001379,2]
[408488847,1773745837739,-935.15476214,0.0001379,2]
[408488849,1773745837748,-935.15476214,0.0001379,2]
[408488851,1773745837757,-935.15476214,0.0001379,2]
[408488853,1773745837767,-935.15476214,0.0001379,2]
[408488855,1773745837777,-935.15476214,0.0001379,2]
[408488856,1773745837786,-935.15476214,0.0001379,2]
[408488859,1773745837796,-935.15476214,0.0001379,2]
[408488861,1773745837807,-935.15476214,0.0001379,2]
[408488863,1773745837816,-935.15476214,0.0001379,2]
[408488865,1773745837825,-935.15476214,0.0001379,2]
[408488867,1773745837835,-206.09721657,0.0001379,2]
[408488869,1773745837850,-637.50353872,0.0001379,2]
[408488890,1773745839755,-3222.99890676,0.00013787,2]
[408488891,1773745839775,-533.00109324,0.00013787,2]
[408488892,1773745839786,-91.55400685,0.0001379,2]
[408488893,1773745839796,-805.51124366,0.0001379,2]
[408488894,1773745839808,-129.64351848,0.0001379,2]
[408488895,1773745839818,-935.15476214,0.0001379,2]
[408488896,1773745839827,-371.06171938,0.0001379,2]
[408488897,1773745839838,-564.09304276,0.0001379,2]
[408488898,1773745839847,-935.15476214,0.0001379,2]
[408488899,1773745839856,-935.15476214,0.0001379,2]
[408488900,1773745839865,-935.15476214,0.0001379,2]
[408488901,1773745839875,-935.15476214,0.0001379,2]
[408488902,1773745839884,-935.15476214,0.0001379,2]
[408488903,1773745839893,-913.77979616,0.0001379,2]
[408488904,1773745839903,-390.68421018,0.0001379,2]
[408488909,1773745845639,-2902.2328823,0.00013524,2]
[408488910,1773745845649,-19338.68268112,0.00013524,2]
[408488913,1773745865816,1047.66902269,0.00032876,120]
[408488916,1773745878157,188994.0,0.00032876,120]
[408488917,1773745889105,454.1503896,0.0003287,120]
[408488918,1773745889717,150.0,0.00022018,120]
[408488919,1773745890093,152.25,0.00023362,120]
[408488920,1773745890541,228.37,0.00024706,120]
[408488921,1773745890814,304.49,0.0002605,120]
[408488922,1773745891180,380.62,0.00027394,120]
[408488923,1773745891522,456.74,0.00028737,120]
[408488924,1773745891633,223.0,0.0003287,120]
[408488925,1773745891881,532.86,0.00030081,120]
[408488926,1773745892227,608.98,0.00031425,120]
[408488927,1773745892616,685.11,0.00032769,120]
[408488928,1773745920999,150.0,0.000152,120]
[408488929,1773745948376,1998.0,0.0003287,120]
[408488930,1773745948691,150.0,0.00022022,120]
[408488931,1773745949024,150.0,0.00023366,120]
[408488932,1773745949168,1233.0,0.0003287,120]
[408488933,1773745949389,171.11,0.0002471,120]
[408488934,1773745949748,228.14,0.00026054,120]
[408488935,1773745950100,285.18,0.00027398,120]
[408488936,1773745950477,342.21,0.00028742,120]
[408488937,1773745950849,399.25,0.00030086,120]
[408488938,1773745951202,456.28,0.0003143,120]
[408488939,1773745951576,513.32,0.00032774,120]
[408488940,1773745951673,258.00181675,0.0003287,120]
[408488942,1773745983851,500.0,0.0003287,120]
[408488943,1773745992709,554.365801,0.00027603,120]
[408488944,1773746006612,150.0,0.00021691,120]
[408488945,1773746007162,150.0,0.00023014,120]
[408488946,1773746007562,150.0,0.00024338,120]
[408488947,1773746007740,300.0,0.0003287,120]
[408488948,1773746007896,169.33,0.00025662,120]
[408488949,1773746008292,211.66,0.00026986,120]
[408488950,1773746008659,254.0,0.0002831,120]
[408488951,1773746009011,296.33,0.00029634,120]
[408488952,1773746009845,338.66,0.00030957,120]
[408488953,1773746010199,380.99,0.00032281,120]
[408488954,1773746038262,150.0,0.00021478,120]
[408488955,1773746038815,150.0,0.00022789,120]
[408488956,1773746038951,150.0,0.000241,120]
[408488957,1773746039284,150.0,0.00025411,120]
[408488958,1773746039634,154.36,0.00026721,120]
[408488959,1773746039974,185.24,0.00028032,120]
[408488960,1773746040322,216.11,0.00029343,120]
[408488961,1773746040658,246.98,0.00030654,120]
[408488962,1773746041002,211.42059691,0.00031965,120]
[408488963,1773746047028,1600.0,0.00032877,120]
[408488964,1773746047296,1600.0,0.00032877,120]
[408488965,1773746047566,1600.0,0.00032877,120]
[408488966,1773746048268,1600.0,0.00032877,120]
[408488967,1773746048559,1600.0,0.00032877,120]
[408488968,1773746048886,1600.0,0.00032877,120]
[408488969,1773746049190,1600.0,0.00032877,120]
[408488970,1773746049445,1600.0,0.00032877,120]
[408488971,1773746049741,1600.0,0.00032877,120]
[408488972,1773746050042,1600.0,0.00032877,120]
[408488973,1773746050326,1600.0,0.00032877,120]
[408488974,1773746050581,1600.0,0.00032877,120]
[408488975,1773746050834,1600.0,0.00032877,120]
[408488976,1773746051106,1600.0,0.00032877,120]
[408488977,1773746051375,1600.0,0.00032877,120]
[408488978,1773746051645,1600.0,0.00032877,120]
[408488979,1773746051905,1600.0,0.00032877,120]
[408488980,1773746052280,1600.0,0.00032877,120]
[408488981,1773746052742,1600.0,0.00032877,120]
[408488982,1773746053215,1600.0,0.00032877,120]
[408488983,1773746053468,1600.0,0.00032877,120]
[408488984,1773746054160,1600.0,0.00032877,120]
[408488985,1773746054506,1600.0,0.00032877,120]
[408488986,1773746054757,1600.0,0.00032877,120]
[408488987,1773746055023,1600.0,0.00032877,120]
[408488988,1773746055275,1600.0,0.00032877,120]
[408488989,1773746055533,1600.0,0.00032877,120]
[408488990,1773746055812,1600.0,0.00032877,120]
[408488991,1773746056074,1600.0,0.00032877,120]
[408488992,1773746056345,1600.0,0.00032877,120]
[408488993,1773746056588,300.0,0.00032877,120]
[408488994,1773746056620,1600.0,0.00032877,120]
[408488995,1773746056874,1600.0,0.00032877,120]
[408488996,1773746057165,1600.0,0.00032877,120]
[408488997,1773746057412,1600.0,0.00032877,120]
[408488998,1773746057661,1600.0,0.00032877,120]
[408488999,1773746058512,1600.0,0.00032877,120]
[408489000,1773746058981,1600.0,0.00032877,120]
[408489001,1773746059473,1600.0,0.00032877,120]
[408489003,1773746060168,1600.0,0.00032877,120]
[408489004,1773746060430,1600.0,0.00032877,120]
[408489005,1773746060677,1600.0,0.00032877,120]
[408489006,1773746061160,1600.0,0.00032877,120]
[408489007,1773746061668,1600.0,0.00032877,120]
[408489008,1773746062161,1600.0,0.00032877,120]
[408489009,1773746062648,1600.0,0.00032877,120]
[408489010,1773746063127,1600.0,0.00032877,120]
[408489011,1773746063399,1037.0,0.00032877,120]
[408489012,1773746068279,150.0,0.00021458,120]
[408489013,1773746068639,150.0,0.00022768,120]
[408489014,1773746069009,150.0,0.00024078,120]
[408489015,1773746069369,150.0,0.00025387,120]
[408489016,1773746069722,150.0,0.00026697,120]
[408489017,1773746070063,150.0,0.00028007,120]
[408489018,1773746070448,154.48,0.00029316,120]
[408489019,1773746097620,150.0,0.00022875,120]
[408489020,1773746097973,150.0,0.00024271,120]
[408489021,1773746098324,150.0,0.00025667,120]
[408489022,1773746098667,150.0,0.00027063,120]
[408489023,1773746104983,212.0,0.00032876,120]
[408489024,1773746108244,438.832342,7.945e-05,2]
[408489025,1773746108707,150.0,0.000152,120]
[408489027,1773746128440,150.0,0.0002287,120]
[408489028,1773746128840,150.0,0.00024266,120]
[408489029,1773746151990,150.0,0.00021453,120]
[408489030,1773746178560,150.0,0.00022872,120]
[408489032,1773746204575,-166.83,0.00013073,2]
[408489033,1773746204603,-249.84458592,0.00013147,2]
[408489034,1773746204630,-166.66,0.0001324,2]
[408489035,1773746207423,-100.55013998,0.00013243,2]
[408489036,1773746210449,-201.10027996,0.00013243,2]
[408489037,1773746213481,-402.20055992,0.00013243,2]
[408489038,1773746216524,-804.40111984,0.00013243,2]
[408489044,1773746294154,241.97,0.000152,120]
[408489048,1773746347234,2490.0,0.00032877,120]
[408489058,1773746548512,426.0,0.0003287,120]
[408489060,1773746587821,2550.585907,7.945e-05,2]
[408489061,1773746591841,8052.0,0.00032877,120]
[408489069,1773747031642,-5665.660166,0.00011391,2]
[408489070,1773747031652,-2000.0,0.00011393,2]
[408489071,1773747031662,-587.99496817,0.00011449,2]
[408489072,1773747031672,-244.0,0.00011449,2]
[408489073,1773747031683,-500.0,0.00011514,2]
[408489074,1773747031693,-194.57847078,0.00011654,2]
[408489076,1773747031702,-1200.0,0.00011683,2]
[408489077,1773747031712,-1200.0,0.00011683,2]
[408489110,1773747031920,-6931.99,0.00011684,2]
[408489112,1773747031930,-300.0,0.00011778,2]
[408489114,1773747031939,-300.0,0.00011778,2]
[408489116,1773747031949,-300.0,0.00011778,2]
[408489118,1773747031959,-5000.0,0.00011779,2]
[408489120,1773747031969,-208.17,0.00011873,2]
[408489122,1773747031978,-5000.0,0.00011912,2]
[408489124,1773747031987,-5749.39,0.00011942,2]
[408489126,1773747031997,-848.78577166,0.0001198,2]
[408489128,1773747032007,-200.0,0.0001208,2]
[408489129,1773747032017,-1546.57,0.00012122,2]
[408489130,1773747032027,-848.78577164,0.00012229,2]
[408489131,1773747032036,-150.0,0.00012272,2]
[408489132,1773747032046,-4663.60398869,0.00012273,2]
[408489133,1773747032060,-15984.68252879,0.00012273,2]
[408489134,1773747032071,-358.18864893,0.00012273,2]
[408489135,1773747032080,-3499.79,0.00012331,2]
[408489136,1773747032090,-741.21915232,0.00012345,2]
[408489137,1773747032101,-376039.89555645,0.00012355,2]
[408489138,1773747032113,-56691.92076276,0.00012355,2]
[408489139,1773747032124,-53591.697714,0.00012355,2]
[408489140,1773747032138,-18719.406717,0.00012355,2]
[408489141,1773747037487,-500.0,0.00012354,2]
[408489142,1773747037497,-500.0,0.00012354,2]
[408489143,1773747037506,-309.86041206,0.00012354,2]
[408489144,1773747037516,-638.30362244,0.00012354,2]
[408489145,1773747037526,-500.0,0.00012354,2]
[408489146,1773747037536,-500.0,0.00012354,2]
[408489147,1773747037545,-500.0,0.00012354,2]
[408489148,1773747037555,-500.0,0.00012354,2]
[408489149,1773747037564,-500.0,0.00012354,2]
[408489150,1773747037574,-500.0,0.00012354,2]
[408489151,1773747037584,-500.0,0.00012354,2]
[408489152,1773747037594,-500.0,0.00012354,2]
[408489153,1773747037603,-500.0,0.00012354,2]
[408489154,1773747037612,-500.0,0.00012354,2]
[408489155,1773747037623,-400.31811062,0.00012354,2]
[408489156,1773747037634,-500.0,0.00012354,2]
[408489157,1773747037643,-500.0,0.00012354,2]
[408489158,1773747037654,-500.0,0.00012354,2]
[408489159,1773747037663,-500.0,0.00012354,2]
[408489160,1773747037673,-500.0,0.00012354,2]
[408489161,1773747037683,-500.0,0.00012354,2]
[408489162,1773747037693,-500.0,0.00012354,2]
[408489163,1773747037702,-500.0,0.00012354,2]
[408489164,1773747037711,-500.0,0.00012354,2]
[408489165,1773747037721,-500.0,0.00012354,2]
[408489166,1773747037730,-500.0,0.00012354,2]
[408489167,1773747037740,-500.0,0.00012354,2]
[408489168,1773747037750,-500.0,0.00012354,2]
[408489169,1773747037760,-500.0,0.00012354,2]
[408489170,1773747037769,-1089650.26589101,0.00012355,2]
[408489171,1773747037783,-5559.03372,0.00012355,2]
[408489172,1773747037802,-47544.39273878,0.00012355,2]
[408489173,1773747037812,-500.0,0.00012373,2]
[408489175,1773747037821,-500.0,0.00012373,2]
[408489176,1773747037832,-500.0,0.00012373,2]
[408489177,1773747037842,-279.95814156,0.00012378,2]
[408489178,1773747037851,-848.78577164,0.00012478,2]
[408489179,1773747037861,-16379.87733772,0.00012518,2]
[408489180,1773747037870,-276.66651325,0.00012569,2]
[408489181,1773747037879,-5211.59,0.00012572,2]
[408489182,1773747037889,-467.85720848,0.00012578,2]
[408489183,1773747037911,-409.46415466,0.00012578,2]
[408489184,1773747037926,-408.14963686,0.00012578,2]
[408489185,1773747037936,-1041.18975204,0.00012593,2]
[408489187,1773747040012,-3451.94947151,0.00012593,2]
[408489198,1773747043070,-23624.88474738,0.00012472,2]
[408489199,1773747043282,-610.77887769,0.00012472,2]
[408489225,1773747045492,-1136.82271602,0.00012472,2]
[408489226,1773747045758,-473.87992186,0.00012472,2]
[408489227,1773747045772,-3425.38903789,0.00012472,2]
[408489228,1773747045811,-2356.106918,0.00012472,2]
[408489231,1773747063844,-500.0,0.00012373,2]
[408489232,1773747063875,-300.0,0.00012471,2]
[408489233,1773747066809,-500.0,0.00012373,2]
[408489234,1773747068535,5542.998553,7.945e-05,2]
[408489235,1773747088182,1355.0,0.0003287,120]
[408489236,1773747090307,327.0,0.0003287,120]
[408489237,1773747091089,363.0,0.0003287,120]
[408489239,1773747149226,916.55775057,0.0003287,120]
[408489240,1773747151236,245.0,0.0003287,120]
[408489242,1773747218666,150.0,0.000151,120]
[408489245,1773747405392,150.0,0.000151,120]
[408489248,1773747522373,-179.81,0.00011381,2]
[408489249,1773747522401,-500.0,0.000114,2]
[408489250,1773747522429,-300.28867831,0.00011455,2]
[408489251,1773747522465,-258.67,0.000115,2]
[408489252,1773747522498,-278.08595037,0.000115,2]
[408489253,1773747522528,-663.65,0.00011507,2]
[408489254,1773747592341,187.78,0.000151,120]
[408489255,1773747594821,173.479,0.00027716,120]
[408489256,1773747597240,216.896,0.00027716,120]
[408489258,1773747807043,-4719.01088076,0.00013,30]
[408489259,1773747807128,-538.74197063,0.000209,30]
[408489260,1773747807160,-2260.27173833,0.00022,30]
[408489261,1773747807193,-1625.20749852,0.00025,30]
[408489262,1773747807222,-4095.33124185,0.0002623,34]
[408489263,1773747807250,-892.34230511,0.000274,30]
[408489264,1773747807276,-2000.0,0.00028,30]
[408489265,1773747807303,-929.37600956,0.00028,30]
[408489266,1773747807334,-564.38209591,0.00030839,54]
[408489267,1773747807357,-500.0,0.00031868,30]
[408489268,1773747807382,-500.0,0.00031901,30]
[408489269,1773747807411,-273.22484241,0.00032877,120]
[408489270,1773747807435,-167.93952242,0.00032877,120]
[408489271,1773747807460,-1056.15455989,0.00032877,120]
[408489272,1773747807483,-315.90369515,0.00032877,120]
[408489273,1773747807507,-190.63,0.000329,30]
[408489274,1773747807530,-1633.02,0.000329,30]
[408489275,1773747807554,-202.0921797,0.000329,120]
[408489276,1773747807577,-181.32259964,0.000329,120]
[408489277,1773747807599,-208.14360974,0.000329,120]
[408489278,1773747807624,-201.96310252,0.000329,120]
[408489279,1773747807647,-223.88690886,0.000329,120]
[408489280,1773747807669,-284.30666195,0.000329,120]
[408489281,1773747807694,-2748.8065323,0.00033,120]
[408489282,1773747807717,-521.97,0.000335,30]
[408489283,1773747807741,-1633.02,0.000339,30]
[408489284,1773747807764,-181.32259964,0.000339,120]
[408489285,1773747807787,-202.0921797,0.000339,120]
[408489286,1773747807812,-208.14360974,0.000339,120]
[408489287,1773747807835,-201.96310252,0.000339,120]
[408489288,1773747807859,-284.30666195,0.000339,120]
[408489289,1773747807884,-1114.95,0.00034,120]
[408489290,1773747808022,-198.56,0.00034212,120]
[408489291,1773747808047,-521.97,0.000345,30]
[408489292,1773747808070,-1633.02,0.000345,30]
[408489293,1773747808094,-1557.71480751,0.0003488,120]
[408489294,1773747808116,-181.32259964,0.000349,120]
[408489295,1773747808140,-202.0921797,0.000349,120]
[408489296,1773747808167,-284.30666195,0.000349,120]
[408489297,1773747808191,-1000.37132275,0.00035,30]
[408489298,1773747808214,-700.0,0.00035,120]
[408489299,1773747808238,-1633.02,0.000351,30]
[408489300,1773747808265,-1114.95,0.0003536,120]
[408489301,1773747808288,-521.97,0.000356,30]
[408489302,1773747808313,-452.90453745,0.0003561,120]
[408489303,1773747808340,-363.10827,0.00035888,30]
[408489304,1773747808363,-1633.02,0.000359,30]
[408489305,1773747808388,-181.32259964,0.000359,120]
[408489306,1773747808411,-284.30666195,0.000359,120]
[408489307,1773747808435,-190.63,0.00036,30]
[408489308,1773747808460,-363.10827,0.00036088,30]
[408489309,1773747808484,-150.0,0.00036253,30]
[408489310,1773747808509,-363.10827,0.00036288,30]
[408489311,1773747808534,-363.10827,0.00036488,30]
[408489312,1773747808559,-363.10827,0.00036688,30]
[408489313,1773747808583,-1514.035,0.00036691,46]
[408489314,1773747808606,-1114.95,0.0003672,120]
[408489315,1773747808630,-250.0,0.00036846,42]
[408489316,1773747808654,-363.10827,0.00036888,30]
[408489317,1773747808678,-521.97,0.00037,30]
[408489318,1773747808714,-1633.02,0.00037,30]
[408489319,1773747808757,-181.32259964,0.00037,120]
[408489320,1773747808796,-284.30666195,0.00037,120]
[408489321,1773747808840,-363.10827,0.00037088,30]
[408489322,1773747808881,-197.4288612,0.000372,120]
[408489323,1773747808924,-197.4288612,0.000372,120]
[408489324,1773747808960,-3998.08,0.00037273,30]
[408489325,1773747808997,-363.10827,0.00037288,30]
[408489326,1773747809033,-363.10827,0.00037488,30]
[408489327,1773747809070,-1000.0,0.00037534,120]
[408489328,1773747809107,-363.10827,0.00037688,30]
[408489329,1773747809143,-1000.0,0.00037808,120]
[408489330,1773747809179,-363.10827,0.00037888,30]
[408489331,1773747809214,-5000.0,0.00038,120]
[408489332,1773747809250,-198.56,0.00038014,120]
[408489333,1773747809289,-1114.95,0.0003808,120]
[408489334,1773747809326,-1000.0,0.00038082,120]
[408489335,1773747809361,-363.10827,0.00038088,30]
[408489336,1773747809397,-616.25469493,0.000381,33]
[408489337,1773747809433,-363.10827,0.00038288,30]
[408489338,1773747809468,-258.92970621,0.000383,30]
[408489339,1773747809503,-485.99939956,0.00038329,120]
[408489340,1773747809538,-1000.0,0.00038356,120]
[408489341,1773747809572,-150.0,0.00038465,30]
[408489342,1773747809609,-363.10827,0.00038488,30]
[408489343,1773747809644,-1000.0,0.0003863,120]
[408489344,1773747809680,-363.10827,0.00038688,30]
[408489345,1773747809714,-4719.52380507,0.0003876,94]
[408489346,1773747809916,-443.65369105,0.000389,120]
[408489347,1773747809960,-1000.0,0.00038904,120]
[408489348,1773747809985,-1000.0,0.00039,30]
[408489349,1773747810010,-250.0,0.00039058,56]
[408489350,1773747810035,-363.10827,0.00039088,30]
[408489351,1773747810060,-1000.0,0.00039178,120]
[408489352,1773747810085,-363.10827,0.00039288,30]
[408489353,1773747810109,-866.75,0.0003941,30]
[408489354,1773747810133,-866.75,0.0003941,30]
[408489355,1773747810157,-866.75,0.0003941,30]
[408489356,1773747810182,-866.75,0.0003941,30]
[408489357,1773747810206,-1114.95,0.0003944,120]
[408489358,1773747810230,-1000.0,0.00039452,120]
[408489359,1773747810257,-363.10827,0.00039488,30]
[408489360,1773747810282,-726.73421211,0.00039509,99]
[408489361,1773747810306,-866.75,0.00039684,30]
[408489362,1773747810330,-866.75,0.00039684,30]
[408489363,1773747810354,-363.10827,0.00039688,30]
[408489364,1773747810378,-724.0,0.000397,120]
[408489365,1773747810402,-1002.30609565,0.00039726,120]
[408489366,1773747810434,-1000.0,0.00039726,120]
[408489367,1773747810463,-363.10827,0.00039888,30]
[408489368,1773747810489,-866.75,0.00039958,30]
[408489369,1773747810513,-866.75,0.00039958,30]
[408489370,1773747810539,-150.0,0.00039966,30]
[408489371,1773747810564,-1000.0,0.0004,120]
[408489372,1773747810590,-165.0,0.0004,120]
[408489373,1773747810620,-151.0,0.0004,120]
[408489374,1773747810660,-1288.59,0.0004,55]
[408489375,1773747810688,-202.72814632,0.0004,120]
[408489376,1773747810715,-717.53882455,0.0004,120]
[408489377,1773747810740,-1026.33757545,0.0004,120]
[408489378,1773747810764,-278.72488924,0.0004,60]
[408489379,1773747810787,-240.8656601,0.0004,30]
[408489380,1773747810812,-1052.06998786,0.0004,30]
[408489381,1773747810836,-1030.22913591,0.0004,30]
[408489382,1773747810864,-221.91088738,0.0004,120]
[408489383,1773747810891,-232.35,0.0004,120]
[408489384,1773747810916,-393.57,0.0004,120]
[408489385,1773747810941,-416.27,0.0004,120]
[408489386,1773747810965,-929.37600956,0.0004,30]
[408489387,1773747810990,-929.37600956,0.0004,120]
[408489388,1773747811018,-160.0,0.0004,120]
[408489389,1773747811043,-929.37600956,0.0004,120]
[408489390,1773747811071,-363.10827,0.00040088,30]
[408489391,1773747811112,-2000.0,0.000401,120]
[408489392,1773747811148,-1000.0,0.0004011,120]
[408489393,1773747811175,-2000.0,0.0004012,120]
[408489394,1773747811202,-2000.0,0.0004013,120]
[408489395,1773747811231,-2000.0,0.0004014,120]
[408489396,1773747811262,-2000.0,0.0004016,120]
[408489397,1773747811288,-1000.0,0.0004017,120]
[408489398,1773747811319,-571.16,0.0004018,120]
[408489399,1773747811350,-1000.0,0.0004019,120]
[408489400,1773747811377,-2000.0,0.000402,120]
[408489401,1773747811406,-866.75,0.00040232,30]
[408489402,1773747811437,-866.75,0.00040232,30]
[408489403,1773747811466,-1000.0,0.00040274,120]
[408489404,1773747811644,-363.10827,0.00040288,30]
[408489405,1773747811671,-2000.0,0.000403,120]
[408489406,1773747811698,-1000.0,0.00040343,120]
[408489407,1773747811729,-1000.0,0.0004035,120]
[408489408,1773747811754,-1000.0,0.0004036,120]
[408489409,1773747811778,-1330.59828245,0.0004037,120]
[408489410,1773747811802,-1000.0,0.0004039,120]
[408489411,1773747811826,-250.0,0.00040487,77]
[408489412,1773747811850,-363.10827,0.00040488,30]
[408489413,1773747811874,-866.75,0.00040506,30]
[408489414,1773747811897,-866.75,0.00040506,30]
[408489415,1773747811922,-1000.0,0.00040548,120]
[408489416,1773747811949,-1040.33931403,0.00040658,120]
[408489417,1773747811973,-363.10827,0.00040688,30]
[408489418,1773747811997,-866.75,0.0004078,30]
[408489419,1773747812022,-866.75,0.0004078,30]
[408489420,1773747812046,-1114.95,0.000408,120]
[408489421,1773747812071,-1000.0,0.00040822,120]
[408489422,1773747812095,-363.10827,0.00040888,30]
[408489423,1773747812119,-12697.0,0.0004095,60]
[408489424,1773747812145,-879.83,0.00041,30]
[408489425,1773747812168,-190.63,0.00041,30]
[408489426,1773747812192,-500.0,0.00041,45]
[408489427,1773747812216,-7311.71176807,0.00041,30]
[408489428,1773747812243,-500.0,0.00041,45]
[408489429,1773747812276,-500.0,0.00041,45]
[408489430,1773747812301,-500.0,0.00041,45]
[408489431,1773747812325,-500.0,0.00041,45]
[408489432,1773747812349,-500.0,0.00041,45]
[408489433,1773747812385,-500.0,0.00041,45]
[408489434,1773747812410,-570.00612911,0.00041,120]
[408489435,1773747812436,-500.0,0.00041,45]
[408489436,1773747812463,-1633.02,0.00041,30]
[408489437,1773747812488,-930.0,0.00041,30]
[408489438,1773747812514,-560.60025377,0.00041,120]
[408489439,1773747812538,-1252.92418539,0.00041,120]
[408489440,1773747812562,-5020.0,0.00041,120]
[408489441,1773747812586,-866.75,0.00041054,30]
[408489442,1773747812610,-866.75,0.00041054,30]
[408489443,1773747812634,-3381.7,0.00041068,120]
[408489444,1773747812658,-1680.0,0.00041068,120]
[408489445,1773747812683,-3488.1,0.00041068,120]
[408489446,1773747812707,-2109.8,0.00041068,120]
[408489447,1773747812731,-3428.6,0.00041068,120]
[408489448,1773747812760,-1908.30705708,0.00041068,120]
[408489449,1773747812785,-363.10827,0.00041088,30]
[408489450,1773747812811,-1000.0,0.00041096,120]
[408489451,1773747812837,-419.75,0.00041096,60]
[408489452,1773747812862,-151.0,0.00041096,120]
[408489453,1773747812888,-151.0,0.00041096,120]
[408489454,1773747812913,-151.0,0.00041096,120]
[408489455,1773747812938,-151.0,0.00041096,120]
[408489456,1773747812965,-151.0,0.00041096,120]
[408489457,1773747812992,-151.0,0.00041096,120]